[Event "Titled Tuesday Blitz May 16 Early 2023"]
[White "Badmatsyrenov, Oleg"]
[Black "Fiorito, Joaquin"]
[WhiteFideId "24115762"]
[BlackFideId "180173"]
[WhiteElo "2396"]
[BlackElo "2157"]
[Result "1-0"]
[Round "04"]
[TimeControl "180+2"]
[Date "2023.05.16"]
[WhiteClock "0:02:35"]
[BlackClock "0:00:54"]

1. e4 {[%clk 0:03:00]}  c6 {[%clk 0:02:59]} 2. d4 {[%clk 0:03:00]}  d5 {[%clk 0:02:59]} 3. Nc3 {[%clk 0:02:58]}  dxe4 {[%clk 0:02:59]} 4. Bc4 {[%clk 0:02:58]}  Nf6 {[%clk 0:03:00]} 5. f3 {[%clk 0:02:59]}  Bf5 {[%clk 0:02:39]} 6. g4 {[%clk 0:02:58]}  Bg6 {[%clk 0:02:39]} 7. g5 {[%clk 0:02:59]}  Nd5 {[%clk 0:02:40]} 8. fxe4 {[%clk 0:02:59]}  Nxc3 {[%clk 0:02:40]} 9. bxc3 {[%clk 0:03:00]}  Bxe4 {[%clk 0:02:25]} 10. Nf3 {[%clk 0:03:00]}  e6 {[%clk 0:02:22]} 11. O-O {[%clk 0:03:00]}  Bd6 {[%clk 0:02:22]} 12. Qe2 {[%clk 0:02:59]}  Bg6 {[%clk 0:02:17]} 13. Nh4 {[%clk 0:02:57]}  Qc7 {[%clk 0:01:22]} 14. a4 {[%clk 0:02:46]}  O-O {[%clk 0:01:10]} 15. Nxg6 {[%clk 0:02:44]}  hxg6 {[%clk 0:01:11]} 16. Rf3 {[%clk 0:02:42]}  Nd7 {[%clk 0:01:03]} 17. Bxe6 {[%clk 0:02:38]}  Rae8 {[%clk 0:01:00]} 18. Bxf7+ {[%clk 0:02:37]}  Rxf7 {[%clk 0:00:58]} 19. Qxe8+ {[%clk 0:02:37]}  Rf8 {[%clk 0:00:54]} 20. Qe6+ {[%clk 0:02:35]} 1-0


[Site "https://www.chess.com"]

[Event "Titled Tuesday Blitz May 16 Early 2023"]
[White "Kushko, Dmitriy"]
[Black "Mathieu, Phileas"]
[WhiteFideId "14162261"]
[BlackFideId "36048410"]
[WhiteElo "2230"]
[BlackElo "2241"]
[Result "0-1"]
[Round "04"]
[TimeControl "180+2"]
[Date "2023.05.16"]
[WhiteClock "0:00:03"]
[BlackClock "0:01:24"]

1. f4 {[%clk 0:03:00]}  b6 {[%clk 0:02:56]} 2. e4 {[%clk 0:02:57]}  Bb7 {[%clk 0:02:57]} 3. d3 {[%clk 0:02:57]}  g6 {[%clk 0:02:54]} 4. Nf3 {[%clk 0:02:55]}  Bg7 {[%clk 0:02:38]} 5. g3 {[%clk 0:02:54]}  d6 {[%clk 0:02:36]} 6. Bg2 {[%clk 0:02:54]}  c5 {[%clk 0:02:35]} 7. O-O {[%clk 0:02:54]}  Nc6 {[%clk 0:02:35]} 8. c3 {[%clk 0:02:49]}  e6 {[%clk 0:02:32]} 9. d4 {[%clk 0:02:48]}  Nge7 {[%clk 0:02:31]} 10. Be3 {[%clk 0:02:47]}  cxd4 {[%clk 0:02:29]} 11. cxd4 {[%clk 0:02:47]}  d5 {[%clk 0:02:29]} 12. e5 {[%clk 0:02:47]}  Nf5 {[%clk 0:02:29]} 13. Bf2 {[%clk 0:02:47]}  h5 {[%clk 0:02:28]} 14. Nc3 {[%clk 0:02:45]}  O-O {[%clk 0:02:26]} 15. Re1 {[%clk 0:02:42]}  Ba6 {[%clk 0:02:26]} 16. Qa4 {[%clk 0:02:37]}  Bb7 {[%clk 0:02:25]} 17. Bf1 {[%clk 0:02:28]}  a6 {[%clk 0:02:25]} 18. Rac1 {[%clk 0:02:26]}  b5 {[%clk 0:02:25]} 19. Qd1 {[%clk 0:02:25]}  Qb6 {[%clk 0:02:24]} 20. h3 {[%clk 0:02:22]}  Rfc8 {[%clk 0:02:17]} 21. g4 {[%clk 0:02:21]}  hxg4 {[%clk 0:02:16]} 22. hxg4 {[%clk 0:02:22]}  Nh6 {[%clk 0:02:17]} 23. Bh3 {[%clk 0:01:43]}  a5 {[%clk 0:02:13]} 24. a4 {[%clk 0:01:35]}  Ba6 {[%clk 0:02:07]} 25. axb5 {[%clk 0:01:35]}  Bxb5 {[%clk 0:02:08]} 26. Nxb5 {[%clk 0:01:25]}  Qxb5 {[%clk 0:02:09]} 27. Qd2 {[%clk 0:01:14]}  a4 {[%clk 0:02:03]} 28. Rc5 {[%clk 0:01:13]}  Qb6 {[%clk 0:01:59]} 29. Rec1 {[%clk 0:01:12]}  Ne7 {[%clk 0:01:58]} 30. Bh4 {[%clk 0:01:05]}  Rxc5 {[%clk 0:01:53]} 31. dxc5 {[%clk 0:01:05]}  Qc7 {[%clk 0:01:53]} 32. Bxe7 {[%clk 0:00:50]}  Qxe7 {[%clk 0:01:52]} 33. g5 {[%clk 0:00:49]}  Nf5 {[%clk 0:01:50]} 34. Bxf5 {[%clk 0:00:49]}  gxf5 {[%clk 0:01:51]} 35. c6 {[%clk 0:00:49]}  Qc7 {[%clk 0:01:46]} 36. Qb4 {[%clk 0:00:39]}  Bf8 {[%clk 0:01:44]} 37. Qb7 {[%clk 0:00:36]}  Rc8 {[%clk 0:01:37]} 38. Qxc7 {[%clk 0:00:34]}  Rxc7 {[%clk 0:01:38]} 39. Nd4 {[%clk 0:00:34]}  Bb4 {[%clk 0:01:31]} 40. Nb5 {[%clk 0:00:33]}  Rc8 {[%clk 0:01:31]} 41. c7 {[%clk 0:00:32]}  Ba5 {[%clk 0:01:31]} 42. Rc6 {[%clk 0:00:20]}  Kf8 {[%clk 0:01:26]} 43. Ra6 {[%clk 0:00:17]}  Bd2 {[%clk 0:01:24]} 44. Ra7 {[%clk 0:00:11]}  Be3+ {[%clk 0:01:21]} 45. Kf1 {[%clk 0:00:10]}  Bxa7 {[%clk 0:01:22]} 46. Nxa7 {[%clk 0:00:10]}  Rxc7 {[%clk 0:01:23]} 47. Nb5 {[%clk 0:00:11]}  Rc4 {[%clk 0:01:23]} 48. Ke2 {[%clk 0:00:08]}  Rxf4 {[%clk 0:01:24]} 49. Nd6 {[%clk 0:00:03]}  Rg4 {[%clk 0:01:24]} 0-1


[Site "https://www.chess.com"]

[Event "Titled Tuesday Blitz May 16 Early 2023"]
[White "Kleiman, Jake"]
[Black "Vaishali, Rameshbabu"]
[WhiteFideId "2020041"]
[BlackFideId "5091756"]
[WhiteElo "2548"]
[BlackElo "2410"]
[Result "1-0"]
[Round "04"]
[TimeControl "180+2"]
[Date "2023.05.16"]
[WhiteClock "0:00:11"]
[BlackClock "0:00:00"]

1. e4 {[%clk 0:03:00]}  c5 {[%clk 0:03:00]} 2. c3 {[%clk 0:03:01]}  d5 {[%clk 0:02:56]} 3. exd5 {[%clk 0:03:01]}  Qxd5 {[%clk 0:02:57]} 4. d4 {[%clk 0:03:02]}  Nc6 {[%clk 0:02:57]} 5. Nf3 {[%clk 0:03:02]}  Bf5 {[%clk 0:02:57]} 6. dxc5 {[%clk 0:03:02]}  Qxd1+ {[%clk 0:02:46]} 7. Kxd1 {[%clk 0:03:03]}  O-O-O+ {[%clk 0:02:46]} 8. Ke1 {[%clk 0:03:03]}  e5 {[%clk 0:02:43]} 9. Be3 {[%clk 0:03:03]}  Nf6 {[%clk 0:02:42]} 10. Nbd2 {[%clk 0:03:03]}  Nd5 {[%clk 0:02:39]} 11. Nb3 {[%clk 0:03:02]}  f6 {[%clk 0:02:35]} 12. Bc4 {[%clk 0:02:52]}  Nxe3 {[%clk 0:02:07]} 13. fxe3 {[%clk 0:02:52]}  Bc2 {[%clk 0:02:07]} 14. Nfd2 {[%clk 0:02:40]}  h5 {[%clk 0:01:48]} 15. e4 {[%clk 0:02:31]}  Bd3 {[%clk 0:01:43]} 16. Bxd3 {[%clk 0:02:27]}  Rxd3 {[%clk 0:01:42]} 17. Ke2 {[%clk 0:02:28]}  Rd7 {[%clk 0:01:36]} 18. Nc4 {[%clk 0:02:17]}  Rh6 {[%clk 0:01:23]} 19. Rad1 {[%clk 0:02:11]}  h4 {[%clk 0:01:20]} 20. Ne3 {[%clk 0:01:45]}  Rh5 {[%clk 0:01:00]} 21. Rd5 {[%clk 0:01:33]}  g6 {[%clk 0:00:54]} 22. Rhd1 {[%clk 0:01:29]}  Rf7 {[%clk 0:00:48]} 23. Nc4 {[%clk 0:01:17]}  Rg5 {[%clk 0:00:45]} 24. Kf2 {[%clk 0:00:48]}  h3 {[%clk 0:00:37]} 25. g3 {[%clk 0:00:41]}  f5 {[%clk 0:00:29]} 26. Ke2 {[%clk 0:00:28]}  f4 {[%clk 0:00:25]} 27. Rg1 {[%clk 0:00:13]}  Kc7 {[%clk 0:00:17]} 28. Rd3 {[%clk 0:00:13]}  Rh5 {[%clk 0:00:05]} 29. g4 {[%clk 0:00:11]}  Rhh7 {[%clk 0:00:03]} 30. Kf3 {[%clk 0:00:12]}  g5 {[%clk 0:00:04]} 31. Rgd1 {[%clk 0:00:12]}  Rd7 {[%clk 0:00:03]} 32. Rd5 {[%clk 0:00:13]}  Rde7 {[%clk 0:00:03]} 33. Nd6 {[%clk 0:00:12]}  Rd7 {[%clk 0:00:02]} 34. Ne8+ {[%clk 0:00:11]}  Kd8 {[%clk 0:00:00]} 35. Nf6 {[%clk 0:00:11]} 1-0


[Site "https://www.chess.com"]

[Event "Titled Tuesday Blitz May 16 Early 2023"]
[White "Gritsenko, Nikolai"]
[Black "Omelja, Artem"]
[WhiteFideId "14112493"]
[BlackFideId "14119846"]
[WhiteElo "2389"]
[BlackElo "2404"]
[Result "1-0"]
[Round "04"]
[TimeControl "180+2"]
[Date "2023.05.16"]
[WhiteClock "0:00:12"]
[BlackClock "0:00:00"]

1. d4 {[%clk 0:03:00]}  Nf6 {[%clk 0:02:58]} 2. Bg5 {[%clk 0:02:59]}  Ne4 {[%clk 0:02:54]} 3. h4 {[%clk 0:02:59]}  d5 {[%clk 0:02:44]} 4. Nd2 {[%clk 0:02:58]}  Nxg5 {[%clk 0:02:35]} 5. hxg5 {[%clk 0:02:57]}  e6 {[%clk 0:02:36]} 6. f4 {[%clk 0:02:53]}  c5 {[%clk 0:02:28]} 7. e3 {[%clk 0:02:42]}  Nc6 {[%clk 0:02:27]} 8. c3 {[%clk 0:02:40]}  h6 {[%clk 0:02:20]} 9. Ngf3 {[%clk 0:02:19]}  Be7 {[%clk 0:02:03]} 10. gxh6 {[%clk 0:02:15]}  g5 {[%clk 0:02:01]} 11. g3 {[%clk 0:02:06]}  gxf4 {[%clk 0:01:57]} 12. gxf4 {[%clk 0:02:06]}  cxd4 {[%clk 0:01:41]} 13. cxd4 {[%clk 0:02:02]}  Qb6 {[%clk 0:01:41]} 14. Qb3 {[%clk 0:01:57]}  Bd7 {[%clk 0:01:40]} 15. Qxb6 {[%clk 0:01:46]}  axb6 {[%clk 0:01:41]} 16. a3 {[%clk 0:01:45]}  Bf8 {[%clk 0:01:17]} 17. h7 {[%clk 0:01:41]}  O-O-O {[%clk 0:01:08]} 18. Bd3 {[%clk 0:01:35]}  Kb8 {[%clk 0:01:06]} 19. Kf2 {[%clk 0:01:30]}  Be7 {[%clk 0:01:03]} 20. Rag1 {[%clk 0:01:28]}  f6 {[%clk 0:00:42]} 21. Bb5 {[%clk 0:01:18]}  Kc7 {[%clk 0:00:32]} 22. Rg7 {[%clk 0:01:08]}  Kd6 {[%clk 0:00:22]} 23. e4 {[%clk 0:00:58]}  dxe4 {[%clk 0:00:13]} 24. Nxe4+ {[%clk 0:00:57]}  Kd5 {[%clk 0:00:14]} 25. Bxc6+ {[%clk 0:00:31]}  bxc6 {[%clk 0:00:13]} 26. Rxe7 {[%clk 0:00:28]}  Kxe4 {[%clk 0:00:13]} 27. Nh4 {[%clk 0:00:29]}  Be8 {[%clk 0:00:08]} 28. Rxe6+ {[%clk 0:00:28]}  Kxf4 {[%clk 0:00:03]} 29. Rxf6+ {[%clk 0:00:17]}  Kg5 {[%clk 0:00:02]} 30. Rf5+ {[%clk 0:00:13]}  Kh6 {[%clk 0:00:02]} 31. Nf3+ {[%clk 0:00:11]}  Kg7 {[%clk 0:00:02]} 32. Rg5+ {[%clk 0:00:11]}  Bg6 {[%clk 0:00:01]} 33. Ne5 {[%clk 0:00:11]}  Rd6 {[%clk 0:00:02]} 34. Rhg1 {[%clk 0:00:11]}  Rxh7 {[%clk 0:00:02]} 35. Rxg6+ {[%clk 0:00:11]}  Rxg6 {[%clk 0:00:02]} 36. Rxg6+ {[%clk 0:00:11]}  Kf8 {[%clk 0:00:03]} 37. Nxc6 {[%clk 0:00:11]}  Rh2+ {[%clk 0:00:03]} 38. Rg2 {[%clk 0:00:12]}  Rh1 {[%clk 0:00:03]} 39. Ne5 {[%clk 0:00:11]}  Rb1 {[%clk 0:00:02]} 40. Ke3 {[%clk 0:00:12]}  Ke7 {[%clk 0:00:01]} 41. Kd3 {[%clk 0:00:12]}  Kd6 {[%clk 0:00:00]} 42. Kc4 {[%clk 0:00:12]} 1-0


[Site "https://www.chess.com"]

[Event "Titled Tuesday Blitz May 16 Early 2023"]
[White "carokannlover213"]
[Black "Danielyan, Vahe"]
[BlackFideId "13304828"]
[WhiteElo "2703"]
[BlackElo "2423"]
[Result "0-1"]
[Round "04"]
[TimeControl "180+2"]
[Date "2023.05.16"]
[WhiteClock "0:00:00"]
[BlackClock "0:01:11"]

1. e4 {[%clk 0:03:00]}  c6 {[%clk 0:03:00]} 2. d4 {[%clk 0:02:59]}  d5 {[%clk 0:03:00]} 3. Nc3 {[%clk 0:03:00]}  dxe4 {[%clk 0:03:00]} 4. Nxe4 {[%clk 0:03:01]}  Nf6 {[%clk 0:02:59]} 5. Nxf6+ {[%clk 0:03:01]}  exf6 {[%clk 0:02:59]} 6. c3 {[%clk 0:03:02]}  Bd6 {[%clk 0:02:59]} 7. Bd3 {[%clk 0:03:03]}  Na6 {[%clk 0:02:58]} 8. Qc2 {[%clk 0:03:04]}  h5 {[%clk 0:02:57]} 9. Ne2 {[%clk 0:03:04]}  Nc7 {[%clk 0:02:57]} 10. Be3 {[%clk 0:03:04]}  h4 {[%clk 0:02:57]} 11. O-O-O {[%clk 0:03:03]}  Nd5 {[%clk 0:02:57]} 12. Bd2 {[%clk 0:03:00]}  b5 {[%clk 0:02:56]} 13. c4 {[%clk 0:03:00]}  bxc4 {[%clk 0:02:56]} 14. Bxc4 {[%clk 0:02:59]}  Kf8 {[%clk 0:02:55]} 15. Nc3 {[%clk 0:02:55]}  Nb4 {[%clk 0:02:45]} 16. Qe4 {[%clk 0:02:44]}  h3 {[%clk 0:02:38]} 17. gxh3 {[%clk 0:02:32]}  Rxh3 {[%clk 0:02:29]} 18. a3 {[%clk 0:02:30]}  Nd5 {[%clk 0:02:12]} 19. Rhe1 {[%clk 0:01:51]}  Be6 {[%clk 0:02:08]} 20. Nxd5 {[%clk 0:01:04]}  cxd5 {[%clk 0:02:09]} 21. Bxd5 {[%clk 0:01:05]}  Rc8+ {[%clk 0:02:08]} 22. Kb1 {[%clk 0:01:01]}  f5 {[%clk 0:02:09]} 23. Qg2 {[%clk 0:00:46]}  Rxh2 {[%clk 0:02:08]} 24. Qf3 {[%clk 0:00:46]}  Bxd5 {[%clk 0:01:52]} 25. Qxd5 {[%clk 0:00:47]}  Rb8 {[%clk 0:01:52]} 26. Bc3 {[%clk 0:00:29]}  Rxf2 {[%clk 0:01:39]} 27. Rh1 {[%clk 0:00:21]}  Kg8 {[%clk 0:01:39]} 28. Rde1 {[%clk 0:00:08]}  Qb6 {[%clk 0:01:31]} 29. Ka1 {[%clk 0:00:01]}  Rxb2 {[%clk 0:01:29]} 30. Re8+ {[%clk 0:00:01]}  Rxe8 {[%clk 0:01:28]} 31. Bxb2 {[%clk 0:00:01]}  Rb8 {[%clk 0:01:11]} 32. Rb1 {[%clk 0:00:00]}  Bxa3 {[%clk 0:01:11]} 0-1


[Site "https://www.chess.com"]

[Event "Titled Tuesday Blitz May 16 Early 2023"]
[White "Belov, Alexei"]
[Black "caropawn10"]
[WhiteFideId "4128206"]
[WhiteElo "2544"]
[BlackElo "2698"]
[Result "0-1"]
[Round "04"]
[TimeControl "180+2"]
[Date "2023.05.16"]
[WhiteClock "0:01:23"]
[BlackClock "0:02:24"]

1. e4 {[%clk 0:03:00]}  c6 {[%clk 0:02:59]} 2. d4 {[%clk 0:03:00]}  d5 {[%clk 0:03:00]} 3. Nd2 {[%clk 0:03:01]}  dxe4 {[%clk 0:03:00]} 4. Nxe4 {[%clk 0:03:01]}  Nf6 {[%clk 0:03:01]} 5. Nxf6+ {[%clk 0:03:02]}  exf6 {[%clk 0:03:02]} 6. c3 {[%clk 0:03:02]}  Bd6 {[%clk 0:03:02]} 7. Bd3 {[%clk 0:03:02]}  O-O {[%clk 0:03:03]} 8. Ne2 {[%clk 0:03:02]}  Re8 {[%clk 0:03:04]} 9. Qc2 {[%clk 0:03:03]}  h5 {[%clk 0:03:03]} 10. Be3 {[%clk 0:03:03]}  Nd7 {[%clk 0:03:03]} 11. O-O-O {[%clk 0:03:02]}  b5 {[%clk 0:03:03]} 12. d5 {[%clk 0:02:57]}  c5 {[%clk 0:03:04]} 13. Bxb5 {[%clk 0:02:56]}  Rb8 {[%clk 0:03:04]} 14. Bc6 {[%clk 0:02:46]}  Re7 {[%clk 0:02:59]} 15. Nf4 {[%clk 0:02:19]}  Ne5 {[%clk 0:02:53]} 16. Nxh5 {[%clk 0:02:12]}  Qa5 {[%clk 0:02:44]} 17. Qa4 {[%clk 0:02:08]}  Nxc6 {[%clk 0:02:39]} 18. Qxc6 {[%clk 0:02:04]}  Qxa2 {[%clk 0:02:39]} 19. Rd2 {[%clk 0:01:53]}  Bf5 {[%clk 0:02:37]} 20. Kd1 {[%clk 0:01:45]}  Qb1+ {[%clk 0:02:26]} 21. Ke2 {[%clk 0:01:45]}  Bg4+ {[%clk 0:02:27]} 22. f3 {[%clk 0:01:41]}  Qxh1 {[%clk 0:02:27]} 23. Qxd6 {[%clk 0:01:37]}  Rbe8 {[%clk 0:02:27]} 24. fxg4 {[%clk 0:01:23]}  Rxe3+ {[%clk 0:02:24]} 0-1


[Site "https://www.chess.com"]

[Event "Titled Tuesday Blitz May 16 Early 2023"]
[White "Bilan, Danila"]
[Black "Rastbod, Ali"]
[WhiteFideId "24161918"]
[BlackFideId "12567477"]
[WhiteElo "2182"]
[BlackElo "2274"]
[Result "0-1"]
[Round "04"]
[TimeControl "180+2"]
[Date "2023.05.16"]
[WhiteClock "0:00:00"]
[BlackClock "0:02:03"]

1. d4 {[%clk 0:03:00]}  Nf6 {[%clk 0:02:54]} 2. Nf3 {[%clk 0:03:00]}  c5 {[%clk 0:02:53]} 3. e3 {[%clk 0:02:59]}  cxd4 {[%clk 0:02:52]} 4. exd4 {[%clk 0:02:59]}  d5 {[%clk 0:02:52]} 5. h3 {[%clk 0:02:57]}  Nc6 {[%clk 0:02:53]} 6. Bd3 {[%clk 0:02:56]}  Nb4 {[%clk 0:02:53]} 7. Bb5+ {[%clk 0:02:26]}  Bd7 {[%clk 0:02:53]} 8. Be2 {[%clk 0:02:11]}  Bf5 {[%clk 0:02:47]} 9. Bb5+ {[%clk 0:02:10]}  Nd7 {[%clk 0:02:43]} 10. Na3 {[%clk 0:01:51]}  a6 {[%clk 0:02:43]} 11. Be2 {[%clk 0:01:22]}  e6 {[%clk 0:02:41]} 12. c3 {[%clk 0:01:15]}  Nc6 {[%clk 0:02:40]} 13. Nc2 {[%clk 0:01:15]}  Bd6 {[%clk 0:02:40]} 14. Bg5 {[%clk 0:01:07]}  Qc7 {[%clk 0:02:40]} 15. a4 {[%clk 0:00:59]}  f6 {[%clk 0:02:39]} 16. Bd2 {[%clk 0:00:42]}  O-O {[%clk 0:02:37]} 17. O-O {[%clk 0:00:35]}  Rae8 {[%clk 0:02:36]} 18. Ne3 {[%clk 0:00:32]}  Be4 {[%clk 0:02:36]} 19. Ne1 {[%clk 0:00:19]}  Ne7 {[%clk 0:02:26]} 20. Bd3 {[%clk 0:00:14]}  e5 {[%clk 0:02:16]} 21. Bxe4 {[%clk 0:00:10]}  dxe4 {[%clk 0:02:17]} 22. Qb3+ {[%clk 0:00:10]}  Kh8 {[%clk 0:02:17]} 23. Nd5 {[%clk 0:00:09]}  Nxd5 {[%clk 0:02:17]} 24. Qxd5 {[%clk 0:00:10]}  f5 {[%clk 0:02:17]} 25. a5 {[%clk 0:00:05]}  Nf6 {[%clk 0:02:18]} 26. Qb3 {[%clk 0:00:05]}  f4 {[%clk 0:02:18]} 27. Nc2 {[%clk 0:00:03]}  f3 {[%clk 0:02:14]} 28. g3 {[%clk 0:00:04]}  exd4 {[%clk 0:02:14]} 29. Nxd4 {[%clk 0:00:04]}  Bxg3 {[%clk 0:02:15]} 30. Ne6 {[%clk 0:00:02]}  Bxf2+ {[%clk 0:02:13]} 31. Kxf2 {[%clk 0:00:02]}  Qh2+ {[%clk 0:02:12]} 32. Ke3 {[%clk 0:00:02]}  Qe2+ {[%clk 0:02:12]} 33. Kf4 {[%clk 0:00:02]}  Nd5+ {[%clk 0:02:12]} 34. Ke5 {[%clk 0:00:02]}  Rxe6+ {[%clk 0:02:11]} 35. Kxe6 {[%clk 0:00:03]}  Qxd2 {[%clk 0:02:08]} 36. Qxd5 {[%clk 0:00:02]}  Re8+ {[%clk 0:02:07]} 37. Kf7 {[%clk 0:00:03]}  Qxd5+ {[%clk 0:02:08]} 38. Kxe8 {[%clk 0:00:03]}  h5 {[%clk 0:02:05]} 39. Rad1 {[%clk 0:00:03]}  Qe6+ {[%clk 0:02:05]} 40. Kf8 {[%clk 0:00:03]}  Qf6+ {[%clk 0:02:02]} 41. Ke8 {[%clk 0:00:03]}  e3 {[%clk 0:02:03]} 42. Rd8 {[%clk 0:00:00]}  Kh7 {[%clk 0:02:03]} 0-1


[Site "https://www.chess.com"]

[Event "Titled Tuesday Blitz May 16 Early 2023"]
[White "Hua, Lefong"]
[Black "iHateNAJDORF"]
[WhiteFideId "2602253"]
[WhiteElo "2691"]
[BlackElo "2534"]
[Result "0-1"]
[Round "04"]
[TimeControl "180+2"]
[Date "2023.05.16"]
[WhiteClock "0:00:18"]
[BlackClock "0:00:12"]

1. d4 {[%clk 0:03:00]}  Nf6 {[%clk 0:03:00]} 2. c4 {[%clk 0:03:01]}  Nc6 {[%clk 0:02:55]} 3. Nf3 {[%clk 0:02:58]}  d6 {[%clk 0:02:55]} 4. g3 {[%clk 0:02:58]}  g6 {[%clk 0:02:55]} 5. Bg2 {[%clk 0:02:58]}  Bg7 {[%clk 0:02:55]} 6. O-O {[%clk 0:02:59]}  O-O {[%clk 0:02:56]} 7. Nc3 {[%clk 0:02:52]}  Bg4 {[%clk 0:02:56]} 8. b3 {[%clk 0:02:44]}  Nd7 {[%clk 0:02:51]} 9. Be3 {[%clk 0:02:34]}  e5 {[%clk 0:02:43]} 10. d5 {[%clk 0:02:29]}  Ne7 {[%clk 0:02:23]} 11. Nd2 {[%clk 0:02:11]}  f5 {[%clk 0:02:18]} 12. Bg5 {[%clk 0:02:08]}  h6 {[%clk 0:02:10]} 13. Bxe7 {[%clk 0:02:05]}  Qxe7 {[%clk 0:02:11]} 14. Rc1 {[%clk 0:01:54]}  e4 {[%clk 0:02:09]} 15. f3 {[%clk 0:01:49]}  exf3 {[%clk 0:01:50]} 16. exf3 {[%clk 0:01:50]}  Qe3+ {[%clk 0:01:40]} 17. Kh1 {[%clk 0:01:49]}  Bxc3 {[%clk 0:01:40]} 18. Nb1 {[%clk 0:01:29]}  Bg7 {[%clk 0:01:18]} 19. fxg4 {[%clk 0:01:24]}  f4 {[%clk 0:01:17]} 20. gxf4 {[%clk 0:01:08]}  Rxf4 {[%clk 0:01:18]} 21. Rxf4 {[%clk 0:01:06]}  Qxf4 {[%clk 0:01:19]} 22. Qf1 {[%clk 0:00:56]}  Qxg4 {[%clk 0:01:13]} 23. Bh3 {[%clk 0:00:55]}  Qe4+ {[%clk 0:01:12]} 24. Qg2 {[%clk 0:00:54]}  Qxg2+ {[%clk 0:01:10]} 25. Kxg2 {[%clk 0:00:55]}  Nc5 {[%clk 0:01:07]} 26. Re1 {[%clk 0:00:51]}  Be5 {[%clk 0:01:07]} 27. Nd2 {[%clk 0:00:50]}  a5 {[%clk 0:01:07]} 28. Nf3 {[%clk 0:00:50]}  Bf6 {[%clk 0:01:06]} 29. Re2 {[%clk 0:00:43]}  Kf8 {[%clk 0:00:59]} 30. Nd2 {[%clk 0:00:42]}  a4 {[%clk 0:00:44]} 31. b4 {[%clk 0:00:39]}  Nd3 {[%clk 0:00:43]} 32. Kf3 {[%clk 0:00:30]}  Nxb4 {[%clk 0:00:36]} 33. Ne4 {[%clk 0:00:30]}  Be5 {[%clk 0:00:34]} 34. c5 {[%clk 0:00:28]}  Nxd5 {[%clk 0:00:28]} 35. cxd6 {[%clk 0:00:25]}  cxd6 {[%clk 0:00:29]} 36. Rd2 {[%clk 0:00:25]}  Nb4 {[%clk 0:00:17]} 37. Nxd6 {[%clk 0:00:25]}  Rd8 {[%clk 0:00:15]} 38. Nc4 {[%clk 0:00:24]}  Rxd2 {[%clk 0:00:15]} 39. Nxd2 {[%clk 0:00:25]}  Nxa2 {[%clk 0:00:15]} 40. Nc4 {[%clk 0:00:21]}  Bxh2 {[%clk 0:00:14]} 41. Bd7 {[%clk 0:00:21]}  Nc3 {[%clk 0:00:14]} 42. Na3 {[%clk 0:00:19]}  Bd6 {[%clk 0:00:12]} 43. Nc2 {[%clk 0:00:19]}  b5 {[%clk 0:00:10]} 44. Ke3 {[%clk 0:00:19]}  b4 {[%clk 0:00:11]} 45. Kd3 {[%clk 0:00:19]}  a3 {[%clk 0:00:11]} 46. Nxa3 {[%clk 0:00:19]}  bxa3 {[%clk 0:00:11]} 47. Kxc3 {[%clk 0:00:20]}  Ke7 {[%clk 0:00:11]} 48. Bg4 {[%clk 0:00:19]}  Kf6 {[%clk 0:00:12]} 49. Kb3 {[%clk 0:00:19]}  h5 {[%clk 0:00:12]} 50. Be2 {[%clk 0:00:19]}  h4 {[%clk 0:00:12]} 51. Bg4 {[%clk 0:00:18]}  Kg5 {[%clk 0:00:12]} 0-1


[Site "https://www.chess.com"]

[Event "Titled Tuesday Blitz May 16 Early 2023"]
[White "Bethke, Richard"]
[Black "Mirzoev, Azer"]
[WhiteFideId "12959243"]
[BlackFideId "13400304"]
[WhiteElo "2369"]
[BlackElo "2525"]
[Result "0-1"]
[Round "04"]
[TimeControl "180+2"]
[Date "2023.05.16"]
[WhiteClock "0:00:00"]
[BlackClock "0:01:45"]

1. e4 {[%clk 0:03:00]}  c5 {[%clk 0:03:00]} 2. Nf3 {[%clk 0:02:59]}  e6 {[%clk 0:03:00]} 3. d4 {[%clk 0:02:53]}  cxd4 {[%clk 0:03:00]} 4. Nxd4 {[%clk 0:02:36]}  a6 {[%clk 0:03:00]} 5. Bd3 {[%clk 0:02:31]}  Nc6 {[%clk 0:02:59]} 6. Nxc6 {[%clk 0:02:26]}  bxc6 {[%clk 0:03:00]} 7. O-O {[%clk 0:00:48]}  d5 {[%clk 0:03:00]} 8. Qe2 {[%clk 0:00:44]}  Nf6 {[%clk 0:02:59]} 9. e5 {[%clk 0:00:42]}  Nd7 {[%clk 0:02:59]} 10. f4 {[%clk 0:00:42]}  Nc5 {[%clk 0:02:59]} 11. c4 {[%clk 0:00:37]}  Be7 {[%clk 0:02:56]} 12. Nc3 {[%clk 0:00:35]}  O-O {[%clk 0:02:53]} 13. Bd2 {[%clk 0:00:26]}  a5 {[%clk 0:02:48]} 14. Rad1 {[%clk 0:00:22]}  Nxd3 {[%clk 0:02:47]} 15. Qxd3 {[%clk 0:00:22]}  Ba6 {[%clk 0:02:45]} 16. b3 {[%clk 0:00:21]}  dxc4 {[%clk 0:02:45]} 17. Qe4 {[%clk 0:00:19]}  cxb3 {[%clk 0:02:43]} 18. Rf3 {[%clk 0:00:17]}  Qb6+ {[%clk 0:02:35]} 19. Be3 {[%clk 0:00:17]}  Qb4 {[%clk 0:02:33]} 20. Bd4 {[%clk 0:00:13]}  Rfd8 {[%clk 0:02:19]} 21. f5 {[%clk 0:00:11]}  exf5 {[%clk 0:02:14]} 22. Qxf5 {[%clk 0:00:10]}  Rxd4 {[%clk 0:02:06]} 23. Qxf7+ {[%clk 0:00:10]}  Kh8 {[%clk 0:02:06]} 24. Rdf1 {[%clk 0:00:00]}  Bc4 {[%clk 0:01:45]} 0-1


[Site "https://www.chess.com"]